fUSD/lending_fUSD_20250101
["ID","MTS","AMOUNT","RATE_DAILY","PERIOD"]
[347389039,1735756232629,-938.57,0.00010958,2]
[347389040,1735756232639,-500.0,0.00010958,2]
[347389041,1735756232648,-483.9511508,0.00010958,2]
[347389042,1735756232659,-577.23,0.00010958,2]
[347389043,1735756232669,-500.0,0.00010958,2]
[347389044,1735756232680,-500.0,0.00010958,2]
[347389045,1735756232689,-668.42,0.00010958,2]
[347389046,1735756232698,-561.84,0.00010958,2]
[347389047,1735756232707,-500.0,0.00010958,2]
[347389048,1735756232716,-1768.68,0.00010958,2]
[347389049,1735756232726,-500.0,0.00010958,2]
[347389050,1735756232735,-500.0,0.00010958,2]
[347389051,1735756232746,-500.0,0.00010958,2]
[347389052,1735756232756,-500.0,0.00010958,2]
[347389053,1735756232766,-560.07,0.00010958,2]
[347389054,1735756232776,-623.28,0.00010958,2]
[347389055,1735756232786,-843.08,0.00010958,2]
[347389056,1735756232795,-884.19,0.00010958,2]
[347389057,1735756232804,-500.0,0.00010958,2]
[347389058,1735756232814,-1463.65,0.00010958,2]
[347389059,1735756232823,-500.0,0.00010958,2]
[347389060,1735756232833,-500.0,0.00010958,2]
[347389061,1735756232842,-1943.97,0.00010958,2]
[347389062,1735756232851,-500.0,0.00010958,2]
[347389063,1735756232861,-500.0,0.00010958,2]
[347389064,1735756232871,-500.0,0.00010958,2]
[347389065,1735756232881,-764.52,0.00010958,2]
[347389066,1735756232894,-1659.99,0.00010958,2]
[347389067,1735756232902,-676.75,0.00010958,2]
[347389068,1735756232911,-500.0,0.00010958,2]
[347389069,1735756232921,-1055.34,0.00010958,2]
[347389070,1735756232931,-500.0,0.00010958,2]
[347389071,1735756232940,-500.0,0.00010958,2]
[347389072,1735756232949,-500.0,0.00010958,2]
[347389073,1735756232959,-500.0,0.00010958,2]
[347389074,1735756232969,-500.0,0.00010958,2]
[347389075,1735756232979,-500.0,0.00010958,2]
[347389076,1735756232987,-500.0,0.00010958,2]
[347389077,1735756232996,-500.0,0.00010958,2]
[347389078,1735756233006,-500.0,0.00010958,2]
[347389079,1735756233015,-500.0,0.00010958,2]
[347389080,1735756233024,-529.85,0.00010958,2]
[347389081,1735756233033,-500.0,0.00010958,2]
[347389082,1735756233043,-500.0,0.00010958,2]
[347389083,1735756233052,-1631.01,0.00010958,2]
[347389084,1735756233062,-720.19,0.00010958,2]
[347389085,1735756233071,-587.16,0.00010958,2]
[347389086,1735756233081,-500.0,0.00010958,2]
[347389087,1735756233090,-500.0,0.00010958,2]
[347389088,1735756233101,-549.78,0.00010958,2]
[347389089,1735756233110,-1309.54,0.00010958,2]
[347389090,1735756233119,-500.0,0.00010958,2]
[347389091,1735756233129,-500.0,0.00010958,2]
[347389092,1735756233138,-608.88,0.00010958,2]
[347389093,1735756233148,-500.0,0.00010958,2]
[347389094,1735756233158,-500.0,0.00010958,2]
[347389095,1735756233168,-500.0,0.00010958,2]
[347389096,1735756233178,-2073.51,0.00010958,2]
[347389097,1735756233188,-872.28,0.00010958,2]
[347389098,1735756233197,-500.0,0.00010958,2]
[347389099,1735756233207,-1137.21,0.00010958,2]
[347389100,1735756233217,-500.0,0.00010958,2]
[347389101,1735756233227,-500.0,0.00010958,2]
[347389102,1735756233237,-635.1,0.00010958,2]
[347389103,1735756233247,-150.0,0.00010958,2]
[347389104,1735756233257,-594.29,0.00010958,2]
[347389105,1735756233267,-500.0,0.00010958,2]
[347389106,1735756233277,-716.23,0.00010958,2]
[347389107,1735756233287,-658.98,0.00010958,2]
[347389108,1735756233297,-500.0,0.00010958,2]
[347389109,1735756233306,-500.0,0.00010958,2]
[347389110,1735756233315,-715.93,0.00010958,2]
[347389111,1735756233325,-500.0,0.00010958,2]
[347389112,1735756233334,-1216.37,0.00010958,2]
[347389113,1735756233344,-500.0,0.00010958,2]
[347389114,1735756233354,-500.0,0.00010958,2]
[347389115,1735756233363,-500.0,0.00010958,2]
[347389116,1735756233373,-500.0,0.00010958,2]
[347389117,1735756233384,-500.0,0.00010958,2]
[347389118,1735756233393,-1229.74,0.00010958,2]
[347389119,1735756233403,-500.0,0.00010958,2]
[347389120,1735756233412,-1218.18,0.00010958,2]
[347389121,1735756233422,-500.0,0.00010958,2]
[347389122,1735756233431,-500.0,0.00010958,2]
[347389123,1735756233440,-2162.56,0.00010958,2]
[347389124,1735756233450,-500.0,0.00010958,2]
[347389125,1735756233459,-500.0,0.00010958,2]
[347389126,1735756233469,-577.32,0.00010958,2]
[347389127,1735756233478,-602.47,0.00010958,2]
[347389128,1735756233488,-537.33,0.00010958,2]
[347389129,1735756233498,-500.0,0.00010958,2]
[347389130,1735756233507,-673.2,0.00010958,2]
[347389131,1735756233516,-500.0,0.00010958,2]
[347389132,1735756233526,-500.0,0.00010958,2]
[347389133,1735756233536,-2233.05,0.00010958,2]
[347389134,1735756233546,-618.29,0.00010958,2]
[347389135,1735756233555,-1061.68,0.00010958,2]
[347389136,1735756233564,-500.0,0.00010958,2]
[347389137,1735756233574,-500.0,0.00010958,2]
[347389138,1735756233583,-2014.97,0.00010958,2]
[347389139,1735756233593,-500.0,0.00010958,2]
[347389140,1735756233603,-500.0,0.00010958,2]
[347389141,1735756233613,-581.35,0.00010958,2]
[347389142,1735756233622,-1085.51,0.00010958,2]
[347389143,1735756233633,-500.0,0.00010958,2]
[347389144,1735756233642,-500.0,0.00010958,2]
[347389145,1735756233652,-582.61,0.00010958,2]
[347389146,1735756233661,-500.0,0.00010958,2]
[347389147,1735756233672,-966.23,0.00010958,2]
[347389148,1735756233682,-500.0,0.00010958,2]
[347389149,1735756233691,-500.0,0.00010958,2]
[347389150,1735756233701,-500.0,0.00010958,2]
[347389151,1735756233711,-691.53,0.00010958,2]
[347389152,1735756233720,-904.42,0.00010958,2]
[347389153,1735756233730,-514.21,0.00010958,2]
[347389154,1735756233740,-696.34,0.00010958,2]
[347389155,1735756233750,-690.5,0.00010958,2]
[347389156,1735756233759,-500.0,0.00010958,2]
[347389157,1735756233768,-500.0,0.00010958,2]
[347389158,1735756233778,-500.0,0.00010958,2]
[347389159,1735756233787,-2014.25,0.00010958,2]
[347389160,1735756233797,-500.0,0.00010958,2]
[347389161,1735756233806,-500.0,0.00010958,2]
[347389162,1735756233815,-546.03,0.00010958,2]
[347389163,1735756233825,-500.0,0.00010958,2]
[347389164,1735756233834,-560.87,0.00010958,2]
[347389165,1735756233844,-500.0,0.00010958,2]
[347389166,1735756233854,-500.0,0.00010958,2]
[347389167,1735756233863,-500.0,0.00010958,2]
[347389168,1735756233873,-500.0,0.00010958,2]
[347389169,1735756233883,-684.99,0.00010958,2]
[347389170,1735756233896,-645.1,0.00010958,2]
[347389171,1735756233906,-1127.87,0.00010958,2]
[347389172,1735756233915,-1279.54,0.00010958,2]
[347389173,1735756233926,-587.33,0.00010958,2]
[347389174,1735756233936,-552.08,0.00010958,2]
[347389175,1735756233946,-1547.17,0.00010958,2]
[347389176,1735756233955,-500.0,0.00010958,2]
[347389177,1735756233965,-1343.46,0.00010958,2]
[347389178,1735756233975,-600.86,0.00010958,2]
[347389179,1735756233985,-500.0,0.00010958,2]
[347389180,1735756233994,-1639.76,0.00010958,2]
[347389181,1735756234004,-732.09,0.00010958,2]
[347389182,1735756234014,-374.34872032,0.00010958,2]
[347389183,1735756234023,-500.0,0.00010958,2]
[347389184,1735756234032,-3911.77,0.00010958,2]
[347389185,1735756234041,-644.96,0.00010958,2]
[347389186,1735756234051,-1643.56,0.00010958,2]
[347389187,1735756234061,-326.99059086,0.00010958,2]
[347389188,1735756234086,-173.00940914,0.00010958,2]
[347389189,1735756234095,-216.60379286,0.00010958,2]
[347389190,1735756234121,-1138.896135,0.00010958,2]
[347389191,1735756234133,-176.30007214,0.00010958,2]
[347389192,1735756234143,-500.0,0.00010958,2]
[347389193,1735756234152,-500.0,0.00010958,2]
[347389194,1735756234162,-422.24777728,0.00010958,2]
[347389195,1735756234224,-77.75222272,0.00010958,2]
[347389196,1735756234234,-500.0,0.00010958,2]
[347389197,1735756234243,-92.54896001,0.00010958,2]
[347389200,1735756237709,-1085.0219015,0.0001091,2]
[347389201,1735756237721,-316.17,0.0001091,2]
[347389202,1735756237764,-2490.8080985,0.0001091,2]
[347389203,1735756237774,-1685.13103999,0.00010958,2]
[347389204,1735756237783,-822.54,0.00010958,2]
[347389205,1735756237792,-840.88,0.00010958,2]
[347389206,1735756237802,-1637.23,0.00010958,2]
[347389207,1735756237813,-1149.52,0.00010958,2]
[347389208,1735756237823,-1265.83,0.00010958,2]
[347389209,1735756237833,-1300.03,0.00010958,2]
[347389210,1735756237843,-2249.22,0.00010958,2]
[347389211,1735756237854,-500.0,0.00010958,2]
[347389212,1735756237865,-2719.04,0.00010958,2]
[347389213,1735756237874,-500.0,0.00010958,2]
[347389214,1735756237883,-1187.35,0.00010958,2]
[347389215,1735756237896,-500.0,0.00010958,2]
[347389216,1735756237905,-500.0,0.00010958,2]
[347389217,1735756237915,-500.0,0.00010958,2]
[347389218,1735756237925,-2010.45,0.00010958,2]
[347389219,1735756237936,-608.72,0.00010958,2]
[347389220,1735756237945,-500.0,0.00010958,2]
[347389221,1735756237955,-500.0,0.00010958,2]
[347389222,1735756237966,-1311.45,0.00010958,2]
[347389223,1735756237976,-1168.95,0.00010958,2]
[347389224,1735756237986,-634.43,0.00010958,2]
[347389225,1735756237995,-1025.68,0.00010958,2]
[347389226,1735756238004,-500.0,0.00010958,2]
[347389227,1735756238013,-500.0,0.00010958,2]
[347389228,1735756238023,-1020.9,0.00010958,2]
[347389229,1735756238033,-500.0,0.00010958,2]
[347389230,1735756238042,-500.0,0.00010958,2]
[347389231,1735756238051,-524.09,0.00010958,2]
[347389232,1735756238060,-1170.46,0.00010958,2]
[347389233,1735756238069,-500.0,0.00010958,2]
[347389234,1735756238078,-584.46,0.00010958,2]
[347389235,1735756238087,-500.0,0.00010958,2]
[347389236,1735756238097,-1160.87,0.00010958,2]
[347389237,1735756238107,-500.0,0.00010958,2]
[347389238,1735756238116,-1900.51,0.00010958,2]
[347389239,1735756238129,-500.0,0.00010958,2]
[347389240,1735756238139,-3051.75,0.00010958,2]
[347389241,1735756238148,-4726.52,0.00010958,2]
[347389242,1735756238157,-753.53,0.00010958,2]
[347389243,1735756238166,-500.0,0.00010958,2]
[347389244,1735756238174,-500.0,0.00010958,2]
[347389245,1735756238184,-500.0,0.00010958,2]
[347389246,1735756238193,-500.0,0.00010958,2]
[347389247,1735756238203,-517.77,0.00010958,2]
[347389248,1735756238212,-799.37,0.00010958,2]
[347389249,1735756238221,-500.0,0.00010958,2]
[347389250,1735756238230,-500.0,0.00010958,2]
[347389251,1735756238239,-500.0,0.00010958,2]
[347389252,1735756238248,-830.17,0.00010958,2]
[347389254,1735756238258,-500.0,0.00010958,2]
[347389256,1735756238267,-479.72953856,0.00010958,2]
[347389258,1735756238277,-2300.59,0.00010958,2]
[347389260,1735756238286,-651.29,0.00010958,2]
[347389262,1735756238295,-500.0,0.00010958,2]
[347389265,1735756238304,-500.0,0.00010958,2]
[347389267,1735756238313,-1901.69,0.00010958,2]
[347389269,1735756238322,-500.0,0.00010958,2]
[347389271,1735756238331,-500.0,0.00010958,2]
[347389273,1735756238341,-500.0,0.00010958,2]
[347389275,1735756238357,-500.0,0.00010958,2]
[347389278,1735756238372,-1556.52,0.00010958,2]
[347389280,1735756238385,-646.71,0.00010958,2]
[347389282,1735756238396,-500.0,0.00010958,2]
[347389285,1735756238411,-877.92,0.00010958,2]
[347389287,1735756238425,-1428.07,0.00010958,2]
[347389290,1735756238439,-1075.82,0.00010958,2]
[347389292,1735756238452,-1256.79,0.00010958,2]
[347389295,1735756238467,-5834.47,0.00010958,2]
[347389297,1735756238479,-1079.28,0.00010958,2]
[347389299,1735756238490,-2011.08,0.00010958,2]
[347389301,1735756238501,-540.86,0.00010958,2]
[347389304,1735756238516,-500.0,0.00010958,2]
[347389306,1735756238528,-669.84,0.00010958,2]
[347389308,1735756238542,-1401.55,0.00010958,2]
[347389311,1735756238555,-500.0,0.00010958,2]
[347389313,1735756238569,-1826.97,0.00010958,2]
[347389316,1735756238582,-1549.77,0.00010958,2]
[347389318,1735756238595,-500.0,0.00010958,2]
[347389321,1735756238608,-500.0,0.00010958,2]
[347389323,1735756238622,-500.0,0.00010958,2]
[347389326,1735756238635,-500.0,0.00010958,2]
[347389328,1735756238648,-1019.06,0.00010958,2]
[347389330,1735756238661,-500.0,0.00010958,2]
[347389333,1735756238675,-1822.89,0.00010958,2]
[347389335,1735756238689,-1805.04,0.00010958,2]
[347389337,1735756238701,-1285.67,0.00010958,2]
[347389340,1735756238711,-736.03,0.00010958,2]
[347389342,1735756238723,-1374.32,0.00010958,2]
[347389344,1735756238734,-1827.47,0.00010958,2]
[347389347,1735756238750,-500.0,0.00010958,2]
[347389349,1735756238760,-2151.31,0.00010958,2]
[347389351,1735756238772,-500.0,0.00010958,2]
[347389353,1735756238783,-500.0,0.00010958,2]
[347389356,1735756238795,-500.0,0.00010958,2]
[347389358,1735756238810,-563.53,0.00010958,2]
[347389360,1735756238822,-3978.35,0.00010958,2]
[347389363,1735756238833,-746.1,0.00010958,2]
[347389365,1735756238843,-861.29,0.00010958,2]
[347389367,1735756238855,-500.0,0.00010958,2]
[347389369,1735756238867,-77.41329205,0.00010958,2]
[347389370,1735756238897,-736.57390145,0.00010958,2]
[347389371,1735756238911,-618.90086075,0.00010958,2]
[347389372,1735756238926,-400.97885,0.00010958,2]
[347389373,1735756238942,-480.891175,0.00010958,2]
[347389374,1735756238956,-528.69395831,0.00010958,2]
[347389375,1735756238972,-972.43796244,0.00010958,2]
[347389376,1735756238983,-1032.13,0.00010958,2]
[347389377,1735756238995,-500.0,0.00010958,2]
[347389379,1735756239006,-500.0,0.00010958,2]
[347389382,1735756239019,-2895.81,0.00010958,2]
[347389384,1735756239031,-500.0,0.00010958,2]
[347389386,1735756239044,-1237.53,0.00010958,2]
[347389388,1735756239056,-857.99,0.00010958,2]
[347389391,1735756239068,-699.59,0.00010958,2]
[347389393,1735756239080,-500.0,0.00010958,2]
[347389395,1735756239092,-500.0,0.00010958,2]
[347389398,1735756239105,-500.0,0.00010958,2]
[347389400,1735756239117,-500.0,0.00010958,2]
[347389402,1735756239129,-500.0,0.00010958,2]
[347389404,1735756239140,-780.09,0.00010958,2]
[347389407,1735756239153,-500.0,0.00010958,2]
[347389409,1735756239165,-1578.66,0.00010958,2]
[347389411,1735756239178,-922.71,0.00010958,2]
[347389414,1735756239189,-2112.38,0.00010958,2]
[347389416,1735756239201,-2293.99,0.00010958,2]
[347389418,1735756239213,-738.84,0.00010958,2]
[347389420,1735756239225,-500.0,0.00010958,2]
[347389423,1735756239237,-537.89,0.00010958,2]
[347389425,1735756239250,-500.0,0.00010958,2]
[347389427,1735756239264,-3285.5,0.00010958,2]
[347389429,1735756239276,-511.15,0.00010958,2]
[347389432,1735756239288,-597.61,0.00010958,2]
[347389434,1735756239300,-500.0,0.00010958,2]
[347389436,1735756239312,-500.0,0.00010958,2]
[347389438,1735756239324,-256.93937507,0.00010958,2]
[347389444,1735756239368,-243.06062493,0.00010958,2]
[347389446,1735756239379,-1230.22,0.00010958,2]
[347389448,1735756239392,-500.0,0.00010958,2]
[347389451,1735756239404,-500.0,0.00010958,2]
[347389453,1735756239416,-1645.23820558,0.00010958,2]
[347389455,1735756239432,-2628.87179442,0.00010958,2]
[347389458,1735756239444,-500.0,0.00010958,2]
[347389460,1735756239456,-224.03037326,0.00010958,2]
[347389463,1735756239472,-975.96962674,0.00010958,2]
[347389465,1735756239484,-500.0,0.00010958,2]
[347389467,1735756239496,-500.0,0.00010958,2]
[347389469,1735756239507,-500.0,0.00010958,2]
[347389472,1735756239518,-500.0,0.00010958,2]
[347389474,1735756239531,-500.0,0.00010958,2]
[347389476,1735756239542,-1395.98,0.00010958,2]
[347389478,1735756239554,-8635.62811615,0.00010958,2]
[347389481,1735756239569,-2305.60188385,0.00010958,2]
[347389483,1735756239581,-500.0,0.00010958,2]
[347389485,1735756239593,-500.0,0.00010958,2]
[347389488,1735756239604,-666.25,0.00010958,2]
[347389490,1735756239615,-500.0,0.00010958,2]
[347389492,1735756239627,-500.0,0.00010958,2]
[347389494,1735756239639,-778.6,0.00010958,2]
[347389496,1735756239651,-500.0,0.00010958,2]
[347389499,1735756239663,-500.0,0.00010958,2]
[347389501,1735756239675,-500.0,0.00010958,2]
[347389504,1735756239691,-500.0,0.00010958,2]
[347389506,1735756239704,-606.64,0.00010958,2]
[347389508,1735756239715,-1249.79,0.00010958,2]
[347389510,1735756239729,-1812.62,0.00010958,2]
[347389513,1735756239741,-6130.18,0.00010958,2]
[347389515,1735756239753,-500.0,0.00010958,2]
[347389517,1735756239765,-1056.78,0.00010958,2]
[347389520,1735756239777,-500.0,0.00010958,7]
[347389522,1735756239789,-500.0,0.00010958,2]
[347389524,1735756239801,-500.0,0.00010958,2]
[347389526,1735756239813,-1580.9,0.00010958,2]
[347389529,1735756239824,-500.0,0.00010958,2]
[347389531,1735756239836,-1293.99,0.00010958,2]
[347389533,1735756239848,-1199.5,0.00010958,2]
[347389535,1735756239859,-500.0,0.00010958,2]
[347389538,1735756239871,-500.0,0.00010958,2]
[347389540,1735756239882,-500.0,0.00010958,2]
[347389542,1735756239897,-500.0,0.00010958,2]
[347389545,1735756239910,-311.16287696,0.00010958,2]
[347389547,1735756239925,-536.37712304,0.00010958,2]
[347389549,1735756239939,-1505.42287696,0.00010958,2]
[347389554,1735756239974,-559.10712304,0.00010958,2]
[347389556,1735756239986,-500.0,0.00010958,2]
[347389558,1735756239998,-340.02672276,0.00010958,2]
[347389561,1735756240013,-231.64327724,0.00010958,2]
[347389563,1735756240025,-326.26702114,0.00010958,2]
[347389568,1735756240059,-5556.97297886,0.00010958,2]
[347389570,1735756240072,-500.0,0.00010958,2]
[347389573,1735756240084,-500.0,0.00010958,2]
[347389575,1735756240096,-1606.97,0.00010958,2]
[347389577,1735756240108,-857.37,0.00010958,2]
[347389579,1735756240119,-1483.06,0.00010958,2]
[347389581,1735756240131,-1300.75,0.00010958,2]
[347389584,1735756240144,-555.37,0.00010958,2]
[347389586,1735756240156,-500.0,0.00010958,2]
[347389588,1735756240168,-500.0,0.00010958,2]
[347389591,1735756240181,-730.44,0.00010958,2]
[347389593,1735756240192,-13965.16666355,0.00010958,2]
[347389596,1735756240207,-3026.65118241,0.00010958,2]
[347389598,1735756240223,-8019.76215404,0.00010958,2]
[347389600,1735756240235,-500.0,0.00010958,2]
[347389603,1735756240247,-175.5694402,0.00010958,2]
[347389605,1735756240262,-324.4305598,0.00010958,2]
[347389607,1735756240273,-2.0194402,0.00010958,2]
[347389611,1735756240301,-497.9805598,0.00010958,2]
[347389614,1735756240313,-559.01,0.00010958,2]
[347389616,1735756240324,-500.0,0.00010958,2]
[347389618,1735756240336,-500.0,0.00010958,2]
[347389620,1735756240347,-66.31894327,0.00010958,2]
[347389624,1735756240375,-433.68105673,0.00010958,2]
[347389626,1735756240387,-500.0,0.00010958,2]
[347389629,1735756240399,-401.89394327,0.00010958,2]
[347389689,1735756241070,-623.56605673,0.00010958,2]
[347389691,1735756241082,-60.22328535,0.00010958,2]
[347389802,1735756242182,-550.720004,0.00010958,2]
[347389805,1735756242206,-252.339999,0.00010958,2]
[347389808,1735756242218,-641.99671165,0.00010958,2]
[347389810,1735756242227,-654.82,0.00010958,2]
[347389812,1735756242236,-594.32,0.00010958,2]
[347389814,1735756242245,-1379.12,0.00010958,2]
[347389815,1735756242255,-500.0,0.00010958,2]
[347389817,1735756242264,-219.7539965,0.00010958,2]
[347389821,1735756242287,-280.2460035,0.00010958,2]
[347389823,1735756242296,-601.06,0.00010958,2]
[347389825,1735756242306,-500.0,0.00010958,2]
[347389826,1735756242315,-1743.44,0.00010958,2]
[347389829,1735756242325,-1708.37,0.00010958,2]
[347389830,1735756242334,-500.0,0.00010958,2]
[347389832,1735756242344,-500.0,0.00010958,2]
[347389834,1735756242353,-224.03887659,0.00010958,2]
[347389839,1735756242383,-342.53112341,0.00010958,2]
[347389841,1735756242392,-500.0,0.00010958,2]
[347389843,1735756242402,-2203.85,0.00010958,2]
[347389845,1735756242411,-500.0,0.00010958,2]
[347389847,1735756242420,-2307.45,0.00010958,2]
[347389849,1735756242429,-500.0,0.00010958,2]
[347389850,1735756242439,-617.66,0.00010958,2]
[347389852,1735756242448,-558.05,0.00010958,2]
[347389854,1735756242457,-500.0,0.00010958,2]
[347389856,1735756242466,-500.0,0.00010958,2]
[347389858,1735756242475,-1220.82,0.00010958,2]
[347389860,1735756242485,-2181.10818595,0.00010958,2]
[347389862,1735756242496,-2454.21736595,0.00010958,2]
[347389865,1735756242507,-1719.25,0.00010958,2]
[347389867,1735756242518,-4603.00000947,0.00010958,2]
[347389959,1735756243237,-1172.0,0.0001091,2]
[347389961,1735756243247,-4431.25443863,0.00010958,2]
[347389962,1735756243257,-500.0,0.00010958,2]
[347389965,1735756243267,-746.4,0.00010958,2]
[347389966,1735756243276,-500.0,0.00010958,2]
[347389968,1735756243285,-2165.01,0.00010958,2]
[347389970,1735756243295,-586.87,0.00010958,2]
[347389972,1735756243304,-289.06960414,0.00010958,2]
[347389974,1735756243314,-1259.61,0.00010958,2]
[347389976,1735756243323,-500.0,0.00010958,2]
[347389978,1735756243333,-500.0,0.00010958,2]
[347389980,1735756243342,-842.23,0.00010958,2]
[347389982,1735756243352,-1273.64,0.00010958,2]
[347389984,1735756243362,-949.76,0.00010958,2]
[347389986,1735756243371,-622.65,0.00010958,2]
[347389988,1735756243381,-500.0,0.00010958,2]
[347389990,1735756243391,-546.36,0.00010958,2]
[347389992,1735756243400,-501.46,0.00010958,2]
[347389994,1735756243409,-1723.19,0.00010958,2]
[347389996,1735756243418,-698.66,0.00010958,2]
[347389998,1735756243427,-500.0,0.00010958,2]
[347390000,1735756243440,-872.09,0.00010958,2]
[347390002,1735756243450,-500.0,0.00010958,2]
[347390004,1735756243459,-500.0,0.00010958,2]
[347390006,1735756243468,-500.0,0.00010958,2]
[347390008,1735756243477,-500.0,0.00010958,2]
[347390010,1735756243487,-500.0,0.00010958,2]
[347390012,1735756243497,-841.53,0.00010958,2]
[347390014,1735756243506,-500.0,0.00010958,2]
[347390016,1735756243516,-1375.34,0.00010958,2]
[347390018,1735756243526,-500.0,0.00010958,2]
[347390020,1735756243535,-556.77,0.00010958,2]
[347390022,1735756243545,-3059.79,0.00010958,2]
[347390024,1735756243555,-500.0,0.00010958,2]
[347390026,1735756243564,-500.0,0.00010958,2]
[347390028,1735756243575,-1895.33274145,0.00010958,2]
[347390031,1735756243594,-11144.46725855,0.00010958,2]
[347390033,1735756243603,-500.0,0.00010958,2]
[347390035,1735756243612,-500.0,0.00010958,2]
[347390037,1735756243622,-500.0,0.00010958,2]
[347390039,1735756243631,-1864.21,0.00010958,2]
[347390041,1735756243640,-1540.52,0.00010958,2]
[347390043,1735756243649,-1117.02,0.00010958,2]
[347390045,1735756243659,-599.67,0.00010958,2]
[347390047,1735756243668,-1139.54,0.00010958,2]
[347390049,1735756243677,-500.0,0.00010958,2]
[347390051,1735756243688,-988.63,0.00010958,2]
[347390053,1735756243697,-500.0,0.00010958,2]
[347390055,1735756243707,-696.94,0.00010958,2]
[347390057,1735756243716,-2387.03,0.00010958,2]
[347390059,1735756243725,-1020.07,0.00010958,2]
[347390061,1735756243735,-770.37,0.00010958,2]
[347390063,1735756243743,-1061.59,0.00010958,2]
[347390065,1735756243753,-500.0,0.00010958,2]
[347390067,1735756243762,-500.0,0.00010958,2]
[347390069,1735756243772,-2037.79,0.00010958,2]
[347390071,1735756243782,-500.0,0.00010958,2]
[347390073,1735756243791,-500.0,0.00010958,2]
[347390075,1735756243800,-500.0,0.00010958,2]
[347390077,1735756243809,-1232.19,0.00010958,2]
[347390078,1735756243819,-500.0,0.00010958,2]
[347390080,1735756243828,-682.86592138,0.00010958,2]
[347390083,1735756243840,-20.84407862,0.00010958,2]
[347390085,1735756243849,-756.00450705,0.00010958,2]
[347390087,1735756243860,-544.8241221,0.00010958,2]
[347390089,1735756243871,-34.41137085,0.00010958,2]
[347390091,1735756243880,-899.29658938,0.00010958,2]
[347390093,1735756243895,-153.69341062,0.00010958,2]
[347390095,1735756243904,-891.415463,0.00010958,2]
[347390097,1735756243915,-497.884537,0.00010958,2]
[347390099,1735756243924,-500.0,0.00010958,2]
[347390101,1735756243934,-500.0,0.00010958,2]
[347390104,1735756243944,-95.335463,0.00010958,2]
[347390107,1735756243967,-900.07497384,0.00010958,2]
[347390109,1735756243979,-755.82029978,0.00010958,2]
[347390111,1735756243990,-948.18799716,0.00010958,2]
[347390114,1735756244001,-2530.58126622,0.00010958,2]
[347390116,1735756244011,-500.0,0.00010958,2]
[347390118,1735756244020,-2953.17,0.00010958,2]
[347390120,1735756244029,-500.0,0.00010958,2]
[347390122,1735756244038,-1065.65561732,0.00010958,2]
[347390124,1735756244049,-2313.9666447,0.00010958,2]
[347390126,1735756244060,-973.5406171,0.00010958,2]
[347390128,1735756244071,-1526.4593829,0.00010958,2]
[347390134,1735756244116,-1248.53773798,0.00010958,2]
[347390136,1735756244125,-1197.88,0.00010958,2]
[347390137,1735756244134,-2273.68,0.00010958,2]
[347390138,1735756244143,-833.13,0.00010958,2]
[347390139,1735756244152,-675.74,0.00010958,2]
[347390140,1735756244161,-893.2,0.00010958,2]
[347390141,1735756244171,-500.0,0.00010958,2]